bitfinex-derivatives/quotes_BTCF0:USTF0_20260119
["timestamp","ask_amount","ask_price","bid_price","bid_amount"]
[1768859996634,0.010754,93042.0,93029.0,8.7e-07]
[1768859996635,0.010754,93041.0,93029.0,8.7e-07]
[1768859997537,0.010755,93034.0,93029.0,8.7e-07]
[1768860000235,0.010754,93043.0,93029.0,8.7e-07]
[1768860000535,0.010756,93032.0,93029.0,8.7e-07]
[1768860001041,0.010755,93036.0,93029.0,8.7e-07]
[1768860001837,0.010755,93039.0,93029.0,8.7e-07]
[1768860002933,0.010755,93039.0,93029.0,0.1804101]
[1768860004041,0.010755,93038.0,93029.0,0.1804101]
[1768860004741,0.010754,93049.0,93031.0,0.04400828]
[1768860004932,0.010754,93047.0,93035.0,0.010755]
[1768860005138,0.010751,93068.0,93038.0,0.11150503]
[1768860005333,0.010751,93068.0,93037.0,0.18040923]
[1768860005334,0.0968,93061.0,93046.0,0.010754]
[1768860005643,0.0968,93061.0,93046.0,0.12225903]
[1768860005842,0.010752,93060.0,93046.0,0.11150503]
[1768860006043,0.010752,93058.0,93046.0,0.11150503]
[1768860006346,0.0968,93061.0,93046.0,0.06749675]
[1768860006531,0.010753,93056.0,93046.0,0.06749675]
[1768860006941,0.0968,93061.0,93046.0,0.06749675]
[1768860007147,0.010753,93053.0,93043.0,0.04400828]
[1768860007342,0.0968,93061.0,93043.0,0.04400828]
[1768860007543,0.010754,93049.0,93040.0,0.18040923]
[1768860007745,0.010753,93051.0,93040.0,0.18040923]
[1768860007945,0.010753,93051.0,93037.0,0.05476328]
[1768860008148,0.03126943,93056.0,93037.0,0.04400828]
[1768860008343,0.010755,93034.0,93021.0,0.10735327]
[1768860008635,0.04199426,93043.0,93029.0,0.01075687]
[1768860008836,0.010754,93043.0,93029.0,0.01075687]
[1768860009037,0.010754,93041.0,93029.0,8.7e-07]
[1768860009232,0.010754,93044.0,93029.0,8.7e-07]
[1768860009630,0.010754,93042.0,93029.0,8.7e-07]
[1768860010647,0.010755,93038.0,93029.0,8.7e-07]
[1768860011146,0.03740426,93045.0,93029.0,8.7e-07]
[1768860012450,0.010754,93042.0,93029.0,8.7e-07]
[1768860012848,0.010754,93048.0,93032.0,0.05476328]
[1768860013050,0.010754,93048.0,93034.0,0.010755]
[1768860013341,0.010754,93048.0,93034.0,0.05476328]
[1768860013748,0.010754,93048.0,93034.0,0.010755]
[1768860013949,0.010754,93048.0,93031.0,0.12242219]
[1768860014550,0.0968,93050.0,93034.0,0.010755]
[1768860015250,0.010754,93049.0,93034.0,0.010755]
[1768860015445,0.14378789,93050.0,93033.0,0.010755]
[1768860015652,0.14378789,93050.0,93031.0,0.11166619]
[1768860015844,0.010754,93048.0,93032.0,0.010755]
[1768860016349,0.13303489,93050.0,93034.0,0.010755]
[1768860016548,0.13303489,93050.0,93036.0,0.010755]
[1768860018645,0.010754,93049.0,93031.0,0.11166619]
[1768860019046,0.010754,93049.0,93036.0,0.010755]
[1768860019241,0.13303489,93050.0,93036.0,0.010755]
[1768860019846,0.13303489,93050.0,93038.0,0.010755]
[1768860020144,0.03606139,93049.0,93038.0,0.010755]
[1768860020351,0.03606139,93048.0,93035.0,0.010755]
[1768860021249,0.03606139,93048.0,93031.0,0.06765791]
[1768860021250,0.010754,93047.0,93031.0,0.06765791]
[1768860022552,0.010754,93047.0,93034.0,0.010755]
[1768860023150,0.04681539,93048.0,93034.0,0.010755]
[1768860024653,0.03606139,93048.0,93034.0,0.010755]
[1768860025154,0.010754,93047.0,93034.0,0.010755]
[1768860026056,0.03606139,93048.0,93036.0,0.010755]
[1768860026256,0.27720923,93050.0,93031.0,0.06765791]
[1768860026455,0.27720923,93050.0,93031.0,0.11552579]
[1768860026654,0.0968,93050.0,93036.0,0.06460041]
[1768860027155,0.0968,93050.0,93032.0,0.04786788]
[1768860028354,0.13250232,93050.0,93033.0,0.010755]
[1768860029546,0.010754,93047.0,93033.0,0.010755]
[1768860029752,0.03423595,93049.0,93031.0,0.06476157]
[1768860030159,0.010754,93045.0,93031.0,0.06476157]
[1768860031254,0.010754,93045.0,93032.0,0.010755]
[1768860031454,0.03423595,93049.0,93032.0,0.010755]
[1768860031856,0.010754,93047.0,93034.0,0.010755]
[1768860032462,0.32238301,93050.0,93034.0,0.010755]
[1768860033565,0.32238301,93050.0,93036.0,0.010755]
[1768860034064,0.31163001,93050.0,93039.0,0.010755]
[1768860034763,0.13122078,93050.0,93040.0,0.010754]
[1768860035062,0.0968,93050.0,93043.0,0.010754]
[1768860035262,0.04494656,93059.0,93043.0,0.010754]
[1768860035572,0.010753,93057.0,93043.0,0.010754]
[1768860035866,0.010753,93057.0,93040.0,0.19116323]
[1768860035867,0.03413358,93057.0,93040.0,0.19116323]
[1768860036068,0.010753,93053.0,93039.0,0.010755]
[1768860036662,0.010753,93054.0,93039.0,0.010755]
[1768860037367,0.06546461,93057.0,93036.0,0.11246829]
[1768860037368,0.07621761,93057.0,93037.0,0.04786788]
[1768860037567,0.03384995,93056.0,93037.0,0.04786788]
[1768860037954,0.010752,93060.0,93042.0,0.04786788]
[1768860038165,0.010752,93058.0,93044.0,0.04786788]
[1768860038360,0.010752,93058.0,93043.0,0.06460041]
[1768860039069,0.03340733,93057.0,93037.0,0.04786788]
[1768860039368,0.03340733,93057.0,93038.0,0.010755]
[1768860040478,0.010753,93053.0,93038.0,0.010755]
[1768860041366,0.010753,93053.0,93038.0,0.06049898]
[1768860041777,0.03340733,93057.0,93038.0,0.04974398]
[1768860042382,0.03340733,93057.0,93039.0,0.06049898]
[1768860043386,0.010753,93054.0,93039.0,0.06049898]
[1768860043880,0.010753,93054.0,93041.0,0.010754]
[1768860044085,0.0968,93059.0,93043.0,0.11957888]
[1768860044387,0.010753,93056.0,93042.0,0.010754]
[1768860044681,0.010753,93053.0,93039.0,0.04974398]
[1768860044984,0.03350434,93058.0,93040.0,0.010755]
[1768860045884,0.010753,93053.0,93040.0,0.010755]
[1768860046886,0.010753,93056.0,93042.0,0.010754]
[1768860047882,0.03350434,93058.0,93039.0,0.04974398]
[1768860048388,0.010753,93052.0,93040.0,0.010755]
[1768860049189,0.010753,93054.0,93039.0,0.04974398]
[1768860049384,0.27720923,93060.0,93037.0,0.0698349]
[1768860049385,0.010754,93048.0,93037.0,0.0698349]
[1768860049784,0.010754,93049.0,93037.0,0.0698349]
[1768860050891,0.010754,93048.0,93037.0,0.0698349]
[1768860051591,0.010754,93046.0,93037.0,0.0698349]
[1768860051991,0.010754,93045.0,93037.0,0.0698349]
[1768860052793,0.010753,93055.0,93037.0,0.0698349]
[1768860053393,0.010754,93046.0,93037.0,0.0698349]
[1768860054189,0.010754,93044.0,93037.0,0.0698349]
[1768860054396,0.010753,93053.0,93037.0,0.0698349]
[1768860056297,0.010754,93043.0,93031.0,0.00016116]
[1768860056699,0.03618305,93048.0,93031.0,0.00016116]
[1768860057500,0.03618305,93048.0,93031.0,0.01091616]
[1768860057696,0.1037337,93052.0,93031.0,0.01091616]
[1768860058098,0.1037337,93052.0,93031.0,0.05782119]
[1768860058493,0.010754,93042.0,93031.0,0.04706619]
[1768860058692,0.010755,93041.0,93031.0,0.00016116]
[1768860058902,0.010755,93039.0,93031.0,0.00016116]
[1768860061701,0.010754,93043.0,93031.0,0.00016116]
[1768860061897,0.010754,93043.0,93031.0,0.01091716]
[1768860062098,0.06777332,93050.0,93032.0,0.04690503]
[1768860062402,0.010754,93041.0,93033.0,0.04690503]
[1768860062603,0.010754,93041.0,93031.0,0.00016116]
[1768860063007,0.010754,93041.0,93031.0,0.04706619]
[1768860063607,0.10287547,93051.0,93031.0,0.04706619]
[1768860063808,0.03497119,93050.0,93031.0,0.04706619]
[1768860064404,0.010754,93045.0,93031.0,0.05782119]
[1768860065005,0.03497119,93050.0,93031.0,0.05782119]
[1768860065199,0.03497119,93050.0,93031.0,0.04706619]
[1768860066509,0.010754,93045.0,93032.0,0.010755]
[1768860067711,0.010754,93045.0,93033.0,0.010755]
[1768860070010,0.010754,93047.0,93033.0,0.010755]
[1768860070211,0.010754,93047.0,93034.0,0.010755]
[1768860071406,0.010753,93050.0,93034.0,0.04690503]
[1768860071612,0.010753,93050.0,93036.0,0.11603138]
[1768860071811,0.010753,93050.0,93037.0,0.04690503]
[1768860072420,0.010753,93050.0,93038.0,0.010755]
[1768860072718,0.010753,93050.0,93037.0,0.04690503]
[1768860072917,0.010753,93050.0,93038.0,0.010755]
[1768860074120,0.0968,93051.0,93039.0,0.04690503]
[1768860074321,0.107553,93051.0,93039.0,0.04690503]
[1768860074820,0.107553,93051.0,93038.0,0.06912635]
[1768860077635,0.0968,93051.0,93038.0,0.06912635]
[1768860078119,0.107553,93051.0,93038.0,0.06912635]
[1768860078728,0.107553,93051.0,93038.0,0.11603138]
[1768860078936,0.0968,93051.0,93039.0,0.05766003]
[1768860081038,0.03700903,93062.0,93042.0,0.11603138]
[1768860081224,0.12040501,93061.0,93043.0,0.04690503]
[1768860081425,0.02360501,93060.0,93043.0,0.04690503]
[1768860081632,0.010753,93056.0,93043.0,0.05765903]
[1768860081829,0.010753,93056.0,93045.0,0.04690503]
[1768860082026,0.0968,93061.0,93048.0,0.04690503]
[1768860082327,0.02360504,93060.0,93048.0,0.04690503]
[1768860082527,0.0968,93061.0,93047.0,0.06912635]
[1768860082728,0.02360478,93060.0,93047.0,0.06912635]
[1768860082926,0.0968,93061.0,93047.0,0.06912635]
[1768860083133,0.02360479,93060.0,93047.0,0.06912635]
[1768860083334,0.0968,93061.0,93047.0,0.06912635]
[1768860083531,0.010752,93059.0,93047.0,0.06912635]
[1768860084332,0.107552,93061.0,93047.0,0.07988035]
[1768860084534,0.07013717,93069.0,93053.0,0.010753]
[1768860084535,0.00236385,93069.0,93053.0,0.010753]
[1768860084729,0.0968,93067.0,93053.0,0.010753]
[1768860085037,0.0968,93068.0,93055.0,0.010753]
[1768860086136,0.0968,93068.0,93053.0,0.04779753]
[1768860087440,0.0968,93068.0,93056.0,0.010753]
[1768860088541,0.00236385,93069.0,93056.0,0.010753]
[1768860089036,0.00236385,93069.0,93058.0,0.010752]
[1768860089241,0.0968,93070.0,93053.0,0.04779753]
[1768860090038,0.0968,93070.0,93058.0,0.010752]
[1768860091241,0.107551,93070.0,93055.0,0.010753]
[1768860091442,0.15536735,93070.0,93055.0,0.010753]
[1768860091641,0.010751,93068.0,93052.0,0.01091416]
[1768860091841,0.010751,93068.0,93054.0,0.010753]
[1768860092737,0.04781635,93064.0,93052.0,0.00016116]
[1768860093046,0.04781635,93064.0,93045.0,0.06742395]
[1768860093047,0.010752,93060.0,93046.0,0.010754]
[1768860093644,0.010752,93060.0,93045.0,0.07817795]
[1768860093837,0.010752,93058.0,93045.0,0.06742395]
[1768860094037,0.010752,93061.0,93045.0,0.06742395]
[1768860094441,0.010752,93061.0,93046.0,0.010754]
[1768860095244,0.010752,93061.0,93048.0,0.010754]
[1768860095838,0.04781635,93063.0,93050.0,0.010753]
[1768860096147,0.0755555,93064.0,93050.0,0.010753]
[1768860096548,0.04781635,93066.0,93052.0,0.010753]
[1768860096941,0.04781635,93066.0,93048.0,0.04779753]
[1768860097147,0.04781635,93069.0,93056.0,0.010753]
[1768860097543,0.04781635,93069.0,93050.0,0.04779753]
[1768860097841,0.04781635,93069.0,93058.0,0.010752]
[1768860098150,0.05856735,93069.0,93050.0,0.04779753]
[1768860098344,0.04781635,93069.0,93057.0,0.010753]
[1768860102453,0.09696116,93070.0,93057.0,0.010753]
[1768860103253,0.010751,93069.0,93052.0,0.05260456]
[1768860103551,0.09696116,93070.0,93057.0,0.010753]
[1768860103851,0.14488786,93070.0,93057.0,0.010753]
[1768860105054,0.15563886,93070.0,93057.0,0.010753]
[1768860105755,0.15563886,93070.0,93054.0,0.010753]
[1768860106358,0.04727072,93067.0,93054.0,0.010753]
[1768860106656,0.05802272,93066.0,93051.0,0.010753]
[1768860107758,0.010752,93064.0,93051.0,0.010753]
[1768860110159,0.010752,93062.0,93049.0,0.00236436]
[1768860110359,0.010752,93060.0,93049.0,0.00236436]
[1768860111659,0.04680302,93058.0,93049.0,0.00236436]
[1768860111858,0.04680302,93058.0,93046.0,0.010754]
[1768860113651,0.06911542,93059.0,93046.0,0.010754]
[1768860114260,0.010752,93058.0,93046.0,0.010754]
[1768860115455,0.06911542,93059.0,93049.0,0.010753]
[1768860115759,0.04451732,93062.0,93049.0,0.010753]
[1768860115960,0.04451732,93062.0,93051.0,0.010753]
[1768860116361,0.04409415,93062.0,93051.0,0.010753]
[1768860116561,0.04409415,93062.0,93048.0,0.010754]
[1768860117262,0.04409415,93062.0,93050.0,0.010753]
[1768860117862,0.04409415,93062.0,93044.0,0.00236447]
[1768860118966,0.27732633,93070.0,93044.0,0.00236447]
[1768860118967,0.38535055,93070.0,93058.0,0.010752]
[1768860119455,0.38535055,93070.0,93055.0,0.010753]
[1768860120056,0.38535055,93070.0,93057.0,0.010753]
[1768860120467,0.04355465,93069.0,93057.0,0.010753]
[1768860120859,0.04308428,93068.0,93050.0,0.24530652]
[1768860121059,0.04308428,93067.0,93047.0,0.04947525]
[1768860121768,0.04308428,93067.0,93055.0,0.010753]
[1768860122470,0.01075,93081.0,93044.0,0.00236447]
[1768860122471,0.04295007,93087.0,93060.0,0.04947525]
[1768860122768,0.09676,93078.0,93068.0,0.010751]
[1768860123365,0.09676,93078.0,93065.0,0.07569335]
[1768860123569,0.09676,93078.0,93067.0,0.010751]
[1768860124163,0.10751,93078.0,93064.0,0.010752]
[1768860124368,0.15613749,93078.0,93064.0,0.010752]
[1768860125170,0.04862749,93074.0,93061.0,0.010752]
[1768860126271,0.010751,93071.0,93056.0,0.010753]
[1768860126467,0.010751,93072.0,93054.0,0.06494135]
[1768860126669,0.04862749,93069.0,93053.0,0.010753]
[1768860126875,0.04862749,93068.0,93053.0,0.010753]
[1768860127777,0.05937849,93068.0,93053.0,0.010753]
[1768860129271,0.04862749,93068.0,93053.0,0.010753]
[1768860130474,0.04862749,93068.0,93056.0,0.010753]
[1768860130678,0.04862749,93068.0,93052.0,0.09692116]
[1768860131274,0.06433431,93069.0,93052.0,0.09692116]
[1768860131275,0.06433431,93069.0,93059.0,0.010752]
[1768860131474,0.06433431,93069.0,93052.0,0.09692116]
[1768860131475,0.04862749,93072.0,93060.0,0.010752]
[1768860131676,0.04862749,93072.0,93062.0,0.010752]
[1768860132975,0.04862749,93072.0,93063.0,0.010752]
[1768860134274,0.04862749,93072.0,93052.0,0.14639641]
[1768860135278,0.04862749,93072.0,93059.0,0.010752]
[1768860136476,0.06433431,93074.0,93054.0,0.04947525]
[1768860136678,0.11107555,93074.0,93062.0,0.010752]
[1768860137680,0.04659279,93073.0,93062.0,0.010752]
[1768860140078,0.04659279,93073.0,93060.0,0.010752]
[1768860140581,0.04659279,93073.0,93054.0,0.07569435]
[1768860141178,0.04659279,93073.0,93054.0,0.06494135]
[1768860141680,0.04659279,93073.0,93058.0,0.010752]
[1768860142387,0.010751,93072.0,93058.0,0.010752]
[1768860142884,0.04659279,93073.0,93054.0,0.06494135]
[1768860143474,0.04659279,93073.0,93062.0,0.010752]
[1768860145770,0.04659279,93073.0,93054.0,0.06494135]
[1768860145974,0.06433431,93074.0,93065.0,0.010752]
[1768860146374,0.04551382,93073.0,93065.0,0.010752]
[1768860147083,0.04551382,93073.0,93061.0,0.010752]
[1768860147274,0.05612055,93072.0,93058.0,0.010752]
[1768860147475,0.04536955,93072.0,93060.0,0.010752]
[1768860148079,0.04536955,93072.0,93061.0,0.010752]
[1768860148480,0.04536955,93072.0,93062.0,0.010752]
[1768860149380,0.04536955,93072.0,93063.0,0.010752]
[1768860151682,0.04536955,93072.0,93053.0,0.04974462]
[1768860152083,0.04536955,93072.0,93059.0,0.010752]
[1768860152389,0.04536955,93072.0,93060.0,0.010752]
[1768860153485,0.06510476,93073.0,93060.0,0.010752]
[1768860153691,0.10962365,93073.0,93054.0,0.11650474]
[1768860153890,0.04451889,93072.0,93054.0,0.11650474]
[1768860154491,0.04451889,93072.0,93061.0,0.010752]
[1768860154888,0.04451889,93072.0,93062.0,0.010752]
[1768860155089,0.04451889,93072.0,93063.0,0.010752]
[1768860155994,0.04451889,93072.0,93060.0,0.010752]
[1768860156694,0.05526989,93072.0,93057.0,0.010753]
[1768860158498,0.05526989,93072.0,93058.0,0.010752]
[1768860158797,0.04451889,93072.0,93060.0,0.010752]
[1768860162392,0.04451889,93072.0,93054.0,0.06676012]
[1768860162592,0.107511,93075.0,93057.0,0.04917905]
[1768860162798,0.04339028,93074.0,93056.0,0.0636691]
[1768860162998,0.010751,93072.0,93056.0,0.0636691]
[1768860163297,0.010751,93072.0,93053.0,0.12645606]
[1768860163298,0.05400378,93072.0,93053.0,0.12645606]
[1768860164197,0.05400378,93072.0,93053.0,0.04917905]
[1768860164497,0.05400378,93072.0,93058.0,0.010752]
[1768860165799,0.05400378,93072.0,93059.0,0.010752]
[1768860166900,0.04325278,93072.0,93053.0,0.04917905]
[1768860168503,0.04325278,93072.0,93061.0,0.010752]
[1768860170609,0.04138243,93066.0,93052.0,0.07743817]
[1768860170817,0.03187486,93057.0,93049.0,0.010754]
[1768860171019,0.03174172,93061.0,93047.0,0.010754]
[1768860171315,0.03174172,93060.0,93047.0,0.010754]
[1768860172109,0.03174172,93060.0,93044.0,0.09912447]
[1768860172110,0.03174172,93060.0,93048.0,0.010754]
[1768860172617,0.03174172,93060.0,93044.0,0.09912447]
[1768860172618,0.03174172,93060.0,93049.0,0.010753]
[1768860173012,0.04245032,93063.0,93044.0,0.21563239]
[1768860173212,0.00016116,93063.0,93046.0,0.010754]
[1768860174112,0.00016116,93063.0,93052.0,0.010753]
[1768860174318,0.00016116,93063.0,93046.0,0.010754]
[1768860175018,0.00016116,93063.0,93052.0,0.010753]
[1768860176814,0.00016116,93063.0,93054.0,0.010753]
[1768860177921,0.00016116,93063.0,93048.0,0.11650792]
[1768860178118,0.00016116,93063.0,93049.0,0.06295272]
[1768860178319,0.00016116,93063.0,93056.0,0.010753]
[1768860179825,0.00016116,93063.0,93058.0,0.010752]
[1768860180015,0.00016116,93063.0,93049.0,0.11650792]
[1768860180016,0.00016116,93063.0,93050.0,0.06295272]
[1768860180318,0.00016116,93063.0,93050.0,0.11650792]
[1768860181124,0.00016116,93063.0,93051.0,0.06295272]
[1768860181526,0.00016116,93063.0,93058.0,0.010752]
[1768860181927,0.00236385,93069.0,93054.0,0.010753]
[1768860182124,0.00236385,93069.0,93053.0,0.11650792]
[1768860182325,0.00236385,93069.0,93054.0,0.06295272]
[1768860183031,0.00236385,93069.0,93057.0,0.010753]
[1768860183831,0.00236385,93069.0,93060.0,0.010752]
[1768860184131,0.00236385,93069.0,93057.0,0.010753]
[1768860184431,0.00236385,93069.0,93048.0,0.00016116]
[1768860184432,0.00236385,93069.0,93059.0,0.0535552]
[1768860184625,0.09676,93073.0,93061.0,0.11650792]
[1768860184826,0.09676,93073.0,93061.0,0.12725992]
[1768860185025,0.09676,93073.0,93061.0,0.07370472]
[1768860185227,0.09676,93073.0,93063.0,0.010752]
[1768860185425,0.01075,93077.0,93063.0,0.010752]
[1768860185626,0.09676,93076.0,93063.0,0.010752]
[1768860188132,0.010751,93075.0,93061.0,0.06295272]
[1768860188638,0.09676,93076.0,93064.0,0.010752]
[1768860189741,0.107511,93076.0,93062.0,0.010752]
[1768860190239,0.107511,93076.0,93063.0,0.010752]
[1768860191939,0.09676,93076.0,93065.0,0.010752]
[1768860192835,0.01075,93078.0,93065.0,0.010752]
[1768860193040,0.09676,93075.0,93065.0,0.010752]
[1768860193240,0.010751,93074.0,93061.0,0.06295272]
[1768860193535,0.010751,93074.0,93061.0,0.07370472]
[1768860193741,0.107511,93075.0,93062.0,0.010752]
[1768860194441,0.09676,93075.0,93063.0,0.010752]
[1768860195037,0.09676,93075.0,93065.0,0.010752]
[1768860199442,0.09676,93075.0,93063.0,0.010752]
[1768860201343,0.09676,93075.0,93064.0,0.010752]
[1768860201538,0.107511,93075.0,93062.0,0.010752]
[1768860202936,0.107511,93075.0,93063.0,0.010752]
[1768860203346,0.09676,93075.0,93057.0,0.0535552]
[1768860203547,0.09676,93075.0,93057.0,0.11962781]
[1768860205453,0.09676,93075.0,93065.0,0.010752]
[1768860205752,0.09676,93075.0,93058.0,0.06607261]
[1768860205952,0.09676,93075.0,93064.0,0.010752]
[1768860207354,0.09676,93075.0,93062.0,0.010752]
[1768860208954,0.03615043,93077.0,93065.0,0.010752]
[1768860209151,0.03615043,93077.0,93066.0,0.010752]
[1768860211171,0.03615043,93077.0,93064.0,0.010752]
[1768860211968,0.0356674,93076.0,93059.0,0.010752]
[1768860212168,0.010751,93074.0,93060.0,0.010752]
[1768860212873,0.010751,93073.0,93060.0,0.010752]
[1768860214472,0.14320621,93075.0,93062.0,0.010752]
[1768860216273,0.14320621,93075.0,93058.0,0.06607261]
[1768860216673,0.13245521,93075.0,93064.0,0.010752]
[1768860216878,0.13245521,93075.0,93058.0,0.06607261]
[1768860218277,0.14320621,93075.0,93061.0,0.010752]
[1768860218580,0.14320621,93075.0,93062.0,0.010752]
[1768860219877,0.010751,93073.0,93055.0,0.04283454]
[1768860220476,0.03482486,93074.0,93055.0,0.04283454]
[1768860220777,0.03482486,93074.0,93061.0,0.010752]
[1768860225680,0.010751,93071.0,93055.0,0.04283454]
[1768860225881,0.03482486,93074.0,93060.0,0.010752]
[1768860226181,0.03224656,93073.0,93056.0,0.010753]
[1768860226880,0.04277046,93072.0,93060.0,0.010752]
[1768860229883,0.03201946,93072.0,93058.0,0.010752]
[1768860230185,0.02913042,93069.0,93058.0,0.010752]
[1768860231281,0.010751,93068.0,93056.0,0.010753]
[1768860231482,0.02891196,93065.0,93053.0,0.010753]
[1768860231676,0.02891196,93065.0,93055.0,0.010753]
[1768860232386,0.06463519,93068.0,93055.0,0.010753]
[1768860232587,0.09334581,93068.0,93055.0,0.010753]
[1768860232786,0.09334581,93068.0,93057.0,0.010753]
[1768860233483,0.09676,93075.0,93049.0,0.09048316]
[1768860233484,0.02841826,93061.0,93049.0,0.09048316]
[1768860233679,0.02841826,93061.0,93050.0,0.09676]
[1768860234079,0.02841826,93061.0,93050.0,0.107513]
[1768860234683,0.010752,93064.0,93050.0,0.107513]
[1768860234888,0.03888113,93066.0,93052.0,0.010753]
[1768860235886,0.03888113,93066.0,93053.0,0.010753]
[1768860236086,0.02812913,93066.0,93053.0,0.010753]
[1768860237887,0.02812913,93066.0,93054.0,0.010753]
[1768860239590,0.03888113,93066.0,93054.0,0.010753]
[1768860240591,0.03888113,93066.0,93051.0,0.010753]
[1768860240791,0.03888113,93066.0,93053.0,0.010753]
[1768860242391,0.010752,93064.0,93051.0,0.010753]
[1768860243492,0.010752,93061.0,93050.0,0.107513]
[1768860243691,0.03567291,93061.0,93050.0,0.107513]
[1768860243886,0.02492091,93061.0,93050.0,0.107513]
[1768860244393,0.010752,93063.0,93050.0,0.107513]
[1768860244694,0.010752,93063.0,93052.0,0.010753]
[1768860246193,0.010752,93063.0,93050.0,0.107513]
[1768860246597,0.010752,93063.0,93051.0,0.010753]
[1768860252697,0.010752,93061.0,93050.0,0.09676]
[1768860253497,0.010752,93061.0,93050.0,0.107513]
[1768860253894,0.010752,93063.0,93050.0,0.107513]
[1768860255195,0.010752,93063.0,93052.0,0.010753]
[1768860255393,0.010752,93066.0,93050.0,0.16471215]
[1768860255698,0.010752,93061.0,93050.0,0.09676]
[1768860255898,0.010752,93061.0,93049.0,0.01311736]
[1768860256900,0.01785282,93067.0,93050.0,0.010753]
[1768860258098,0.010752,93064.0,93051.0,0.010753]
[1768860258597,0.010752,93064.0,93052.0,0.010753]
[1768860260293,0.010752,93066.0,93052.0,0.010753]
[1768860260503,0.010751,93068.0,93055.0,0.010753]
[1768860261710,0.010752,93065.0,93053.0,0.06795215]
[1768860263004,0.010751,93067.0,93054.0,0.010753]
[1768860263205,0.09676,93069.0,93054.0,0.010753]
[1768860264006,0.107511,93069.0,93054.0,0.010753]
[1768860264404,0.010751,93068.0,93054.0,0.010753]
[1768860266900,0.107511,93068.0,93054.0,0.010753]
[1768860268606,0.010752,93066.0,93054.0,0.010753]
[1768860268907,0.09676,93068.0,93054.0,0.010753]
[1768860272010,0.11988146,93069.0,93054.0,0.010753]
[1768860273712,0.010751,93067.0,93054.0,0.010753]
[1768860276714,0.10913046,93069.0,93055.0,0.010753]
[1768860276914,0.10913046,93069.0,93053.0,0.07870515]
[1768860277513,0.010751,93068.0,93053.0,0.07870515]
[1768860277712,0.010751,93068.0,93054.0,0.010753]
[1768860278514,0.010751,93068.0,93055.0,0.010753]
[1768860279016,0.10913046,93069.0,93055.0,0.010753]
[1768860279220,0.09676,93069.0,93058.0,0.010752]
[1768860279415,0.010751,93068.0,93053.0,0.06795215]
[1768860279819,0.09676,93069.0,93055.0,0.010753]
[1768860281824,0.010751,93068.0,93055.0,0.010753]
[1768860282317,0.010751,93068.0,93053.0,0.07870515]
[1768860283219,0.010751,93068.0,93055.0,0.010753]
[1768860283612,0.09676,93069.0,93053.0,0.06795215]
[1768860283613,0.010752,93066.0,93053.0,0.06795215]
[1768860283809,0.010752,93064.0,93052.0,0.010753]
[1768860284918,0.01056674,93067.0,93049.0,0.07878587]
[1768860284919,0.010752,93062.0,93049.0,0.07878587]
[1768860285320,0.010752,93062.0,93050.0,0.010753]
[1768860285519,0.010752,93064.0,93050.0,0.010753]
[1768860285719,0.010752,93064.0,93052.0,0.010753]
[1768860286220,0.010752,93066.0,93052.0,0.010753]
[1768860287223,0.010752,93066.0,93054.0,0.010753]
[1768860288723,0.010751,93067.0,93051.0,0.04589789]
[1768860289022,0.09676,93069.0,93054.0,0.06566851]
[1768860289213,0.010752,93066.0,93054.0,0.07642151]
[1768860290518,0.107511,93069.0,93054.0,0.07642151]
[1768860290722,0.010752,93067.0,93054.0,0.07642151]
[1768860291923,0.010752,93066.0,93054.0,0.07642151]
[1768860292825,0.107511,93069.0,93055.0,0.010753]
[1768860294124,0.010751,93068.0,93055.0,0.010753]
[1768860295428,0.010751,93068.0,93056.0,0.010753]
[1768860296124,0.09676,93069.0,93056.0,0.010753]
[1768860296320,0.107511,93069.0,93056.0,0.010753]
[1768860298632,0.010751,93067.0,93054.0,0.07642151]
[1768860298827,0.09676,93069.0,93052.0,0.06375743]
[1768860299124,0.010752,93066.0,93052.0,0.07451043]
[1768860299425,0.010752,93066.0,93053.0,0.010753]
[1768860299625,0.010751,93068.0,93052.0,0.06375743]
[1768860299924,0.010751,93068.0,93053.0,0.06375743]
[1768860300124,0.010751,93068.0,93054.0,0.010753]
[1768860300828,0.09676,93069.0,93053.0,0.06375743]
[1768860301623,0.010751,93068.0,93054.0,0.010753]
[1768860301827,0.010751,93068.0,93053.0,0.06375743]
[1768860302027,0.010752,93067.0,93054.0,0.010753]
[1768860302927,0.107511,93069.0,93054.0,0.010753]
[1768860304029,0.010751,93068.0,93054.0,0.010753]
[1768860304228,0.010752,93066.0,93053.0,0.06375743]
[1768860304627,0.010752,93066.0,93053.0,0.07451043]
[1768860304930,0.010751,93068.0,93054.0,0.010753]
[1768860305230,0.09676,93069.0,93058.0,0.010752]
[1768860305523,0.010751,93069.0,93058.0,0.06375743]
[1768860306231,0.09676,93070.0,93058.0,0.06375743]
[1768860306417,0.010751,93076.0,93062.0,0.06375743]
[1768860306732,0.09676,93077.0,93066.0,0.06375743]
[1768860307331,0.010751,93076.0,93066.0,0.06375743]
[1768860308324,0.30048,93091.0,93069.0,0.04802938]
[1768860308325,0.00236346,93084.0,93069.0,0.04802938]
[1768860308520,0.01075,93081.0,93071.0,0.06375743]
[1768860308725,0.10987346,93084.0,93071.0,0.06375743]
[1768860309226,0.09912346,93084.0,93071.0,0.06375743]
[1768860309525,0.10987346,93084.0,93071.0,0.06375743]
[1768860310329,0.01075,93082.0,93071.0,0.06375743]
[1768860311430,0.09912346,93084.0,93071.0,0.06375743]
[1768860312032,0.00236346,93084.0,93071.0,0.06375743]
[1768860313231,0.01075,93083.0,93071.0,0.06375743]
[1768860313738,0.01075,93076.0,93071.0,0.06375743]
[1768860313929,0.01075,93077.0,93071.0,4.3e-07]
[1768860314129,0.00236346,93084.0,93067.0,0.00016116]
[1768860314336,0.02337357,93084.0,93067.0,0.00016116]
[1768860314536,0.010751,93074.0,93067.0,0.00016116]
[1768860314837,0.010751,93074.0,93063.0,0.04802938]
[1768860319357,0.010751,93071.0,93063.0,0.04802938]
[1768860319543,0.010751,93070.0,93061.0,0.11178681]
[1768860319841,0.010751,93070.0,93062.0,0.11178681]
[1768860320044,0.010751,93073.0,93062.0,0.11178681]
[1768860321143,0.01075,93076.0,93063.0,0.05878138]
[1768860322639,0.01075,93076.0,93065.0,0.010752]
[1768860322843,0.02376913,93079.0,93061.0,0.010752]
[1768860323441,0.010751,93076.0,93063.0,0.010752]